[Event "15th Chennai GM Open 2025"]
[Site "Chennai"]
[Date "2025.01.08"]
[Round "9.15"]
[White "Setumadhav Yellumahanthi"]
[Black "Arshpreet Singh"]
[Result "1-0"]
[ECO "B47"]
[WhiteElo "2334"]
[BlackElo "2073"]
[Annotator "TA"]
[PlyCount "119"]
[EventDate "2025.01.02"]
[EventType "swiss"]
[EventCountry "IND"]
[SourceTitle "playchess.com"]
[Source "ChessBase"]
[SourceQuality "1"]
[TimeControl "5400+30"]

{[%evp 16,119,33,14,30,24,15,20,21,38,23,26,25,0,10,10,9,9,25,30,25,27,61,52,49,43,51,46,84,99,94,83,81,87,79,68,82,88,138,133,165,159,147,151,197,206,214,208,208,182,166,191,184,168,262,254,264,235,258,268,337,325,312,286,467,457,641,619,619,623,680,699,714,495,1471,841,1466,0,1429,1395,1326,1300,1224,691,29969,29972,29972,29973,29973,29974,29974,29975,29975,29976,29976,29977,29977,29978,29978,29979,29979,29980,29980,29981,29982,29982]} 1. e4 {[%emt 0:01:55]} c5 {[%emt 0:00:02]} 2. Nf3 {[%emt 0:00:14]} e6 {[%emt 0:00:04]} 3. d4 {[%emt 0:00:04]} cxd4 {[%emt 0:00:05]} 4. Nxd4 {[%emt 0:00:08]} Nc6 {[%emt 0:00:02]} 5. Nc3 {[%emt 0:00:07]} Qc7 {[%emt 0:00:06]} 6. Be2 {[%emt 0:00:20]} a6 {[%emt 0:00:37]} 7. Nxc6 {[%emt 0:00:23]} bxc6 {[%emt 0:00:13]} 8. Qd3 {[%emt 0:00:06]} d5 {[%emt 0:00:04]} 9. Qg3 {[%emt 0:00:48]} Qxg3 {[%emt 0:00:04]} 10. hxg3 {[%emt 0:00:06]} Nf6 {[%emt 0:00:14]} 11. g4 {[%emt 0:00:53]} Nxe4 {[%emt 0:05:22]} 12. Nxe4 {[%emt 0:01:32]} dxe4 {[%emt 0:00:02]} 13. Be3 {[%emt 0:00:11]} e5 {[%emt 0:00:28]} 14. f3 {[%emt 0:16:04]} Be6 {[%emt 0:14:51]} 15. fxe4 {[%emt 0:04:37]} a5 {[%emt 0:00:57]} 16. a3 {[%emt 0:05:20]} f6 {[%emt 0:12:49]} 17. g5 {[%emt 0:06:36]} fxg5 {[%emt 0:01:16]} 18. Bh5+ {[%emt 0:01:51]} Kd7 {[%emt 0:04:30]} 19. O-O-O+ {[%emt 0:01:26]} Kc7 {[%emt 0:00:51]} 20. Bxg5 {[%emt 0:00:36]} Bc5 {[%emt 0:00:27]} 21. Bh4 {[%emt 0:05:03]} Be3+ {[%emt 0:25:34]} 22. Kb1 {[%emt 0:01:56]} g5 {[%emt 0:00:52]} 23. Bg3 {[%emt 0:04:00]} Bf4 {[%emt 0:00:35]} 24. Be1 {[%emt 0:06:06]} g4 {[%emt 0:00:19]} 25. g3 {[%emt 0:00:49]} Be3 {[%emt 0:06:22] [#]} 26. Rf1 $1 {[%emt 0:14:11]} (26. Bc3 Bd4 $18) 26... Rhf8 {[%emt 0:00:40] [#]} (26... Kb7 $142) 27. Bxa5+ $1 $16 {[%emt 0:02:13]} Kb7 {[%emt 0:00:01]} 28. Bc3 {[%emt 0:01:52]} Bd4 {[%emt 0:01:34]} 29. Bxd4 {[%emt 0:02:14]} Rxf1 {[%emt 0:06:28]} (29... exd4 $16 30. Rf4 (30. Rxf8 Rxf8 31. Kc1 c5 $11) 30... c5 31. Bxg4 Bxg4 (31... Rxf4 $2 32. Bxe6 Rf3 33. Bd5+ Kb8 34. Bxa8 $18) 32. Rxg4 Rg8) 30. Rxf1 $18 {[%emt 0:00:14]} exd4 {[%emt 0:00:02]} 31. Rf4 {[%emt 0:00:17]} Rg8 {[%emt 0:00:19]} 32. Bf7 {[%emt 0:13:17]} Bxf7 {[%emt 0:00:20]} 33. Rxf7+ {[%emt 0:00:02]} Kb6 {[%emt 0:00:01]} 34. Kc1 {[%emt 0:02:07]} Rg5 {[%emt 0:13:28]} (34... c5 $142 35. Rxh7 Re8) 35. Kd2 $18 {[%emt 0:00:36]} (35. Rxh7 Re5 36. Rg7 Rxe4 $14) 35... Rh5 {[%emt 0:00:30]} 36. Rg7 {[%emt 0:02:22]} Rh2+ {[%emt 0:00:25]} 37. Kd3 {[%emt 0:00:01]} h5 {[%emt 0:00:27]} 38. Rg5 {[%emt 0:02:52]} (38. Kxd4 Rxc2 39. Rg8 Rg2 $11) 38... Rg2 {[%emt 0:02:57]} 39. Rxh5 {[%emt 0:00:45]} (39. Kxd4 Rxc2 40. e5 (40. Rxh5 Rxb2 41. e5 c5+ 42. Ke4 c4 $16) 40... Rxb2 $16) 39... c5 $2 {[%emt 0:00:25]} (39... Rxg3+ {keeps fighting.} 40. Kxd4 Rg2) 40. Rg5 $18 {[%emt 0:03:40]} Rxg3+ {[%emt 0:00:17]} (40... Kb5 $142 41. Rxg4 Rf2) 41. Kc4 $18 {[%emt 0:00:01]} Rg2 {[%emt 0:00:11]} 42. Rg6+ {[%emt 0:00:44]} (42. Rxc5 $2 {is the wrong capture.} Rxc2+ 43. Kxd4 Rxc5 $19) 42... Kc7 {[%emt 0:00:29]} 43. Kxc5 {[%emt 0:00:22]} Rxc2+ {[%emt 0:00:02]} 44. Kxd4 {[%emt 0:00:02]} Rxb2 {[%emt 0:00:04]} (44... Rg2 $142 45. b4 g3) 45. Rg7+ {[%emt 0:01:57]} Kb6 {[%emt 0:00:51]} 46. Rg6+ {[%emt 0:00:38]} Kc7 {[%emt 0:00:32]} 47. Rxg4 {[%emt 0:01:18]} Rb3 {[%emt 0:00:01]} 48. Rg7+ {[%emt 0:00:10]} Kb6 {[%emt 0:00:10]} 49. Rg1 {[%emt 0:01:08]} ({Weaker is} 49. Rg6+ Kb7 50. Rg7+ Kb6 $18) 49... Rxa3 {[%emt 0:01:18]} 50. Rc1 {[%emt 0:00:01]} Ra7 {[%emt 0:00:32]} 51. Kd5 {[%emt 0:00:25]} Rd7+ {[%emt 0:01:04]} 52. Ke6 {[%emt 0:00:10]} Rd2 {[%emt 0:00:32]} 53. e5 {[%emt 0:00:06]} Re2 {[%emt 0:00:03]} 54. Kf6 {[%emt 0:00:06]} Rf2+ {[%emt 0:00:06]} 55. Ke7 {[%emt 0:00:05]} Re2 {[%emt 0:00:04]} 56. e6 {[%emt 0:00:04]} Kb7 {[%emt 0:00:08]} 57. Kf7 {[%emt 0:00:07]} Rf2+ {[%emt 0:00:05]} 58. Ke8 {[%emt 0:00:03]} Re2 {[%emt 0:00:06]} 59. e7 {[%emt 0:00:05]} Re3 {[%emt 0:00:06]} 60. Rc4 {[%emt 0:00:17]} 1-0

[Event "15th Chennai GM Open 2025"]
[Site "Chennai"]
[Date "2025.01.09"]
[Round "10.1"]
[White "Iniyan, Pa"]
[Black "Deepan Chakkravarthy J."]
[Result "1-0"]
[ECO "D27"]
[WhiteElo "2508"]
[BlackElo "2413"]
[Annotator "TA"]
[PlyCount "77"]
[EventDate "2025.01.02"]
[EventType "swiss"]
[EventCountry "IND"]
[SourceTitle "playchess.com"]
[Source "ChessBase"]
[SourceQuality "1"]
[TimeControl "5400+30"]

{[%evp 16,77,23,16,25,16,36,10,12,-7,20,23,23,20,45,40,36,31,34,31,43,27,35,20,77,11,26,33,31,54,45,14,16,14,123,114,154,139,207,200,406,396,394,381,415,423,1760,1745,1712,1737,1769,1758,1536,1511,29998,1314,1337,1274,1311,1249,2169,1956,2035,1888]} 1. d4 {[%emt 0:09:50]} d5 {[%emt 0:00:20]} 2. c4 {[%emt 0:00:07]} dxc4 {[%emt 0:00:10]} 3. Nf3 {[%emt 0:04:03]} Nf6 {[%emt 0:00:06]} 4. e3 {[%emt 0:00:54]} e6 {[%emt 0:00:08]} 5. Bxc4 {[%emt 0:00:06]} a6 {[%emt 0:00:03]} 6. O-O {[%emt 0:00:09]} c5 {[%emt 0:00:04]} 7. b3 {[%emt 0:05:09]} cxd4 {[%emt 0:04:01]} 8. Nxd4 {[%emt 0:00:12]} Be7 {[%emt 0:00:02]} 9. Bb2 {[%emt 0:02:59]} O-O {[%emt 0:00:05]} 10. Nd2 {[%emt 0:02:25]} Bd7 {[%emt 0:15:54]} 11. e4 {[%emt 0:04:51]} Nc6 {[%emt 0:00:22]} 12. N4f3 {[%emt 0:00:04]} b5 {[%emt 0:09:44]} 13. Bd3 {[%emt 0:01:26]} Bc8 {[%emt 0:00:02]} 14. Qe2 {[%emt 0:08:04]} Nb4 {[%emt 0:06:21]} 15. Bb1 {[%emt 0:00:12]} Bb7 {[%emt 0:00:03]} 16. a3 {[%emt 0:02:57]} Nc6 {[%emt 0:00:14]} 17. e5 {[%emt 0:00:06]} Nd5 {[%emt 0:03:32]} 18. Qe4 {[%emt 0:00:08][%csl Gb1][%cal Re4h7]} g6 {[%emt 0:00:06]} 19. Qg4 $36 {[%emt 0:00:28][%mdl 2048] White has good play.} b4 {[%emt 0:16:20]} (19... Na5 $11 {remains equal.}) 20. Ne4 {[%emt 0:08:24]} ({White should play} 20. axb4 $1 $16 Rb8 21. Ne4) 20... bxa3 {[%emt 0:04:35]} 21. Bxa3 {[%emt 0:00:19]} Bxa3 {[%emt 0:02:25]} 22. Rxa3 {[%emt 0:00:12]} Qe7 {[%emt 0:00:05]} 23. Ra4 {[%emt 0:03:21]} Rad8 {[%emt 0:02:17]} 24. h4 {[%emt 0:07:30]} h5 {[%emt 0:15:03]} (24... Kg7 $11) 25. Qg3 $16 {[%emt 0:00:07]} Kg7 {[%emt 0:00:02] [#]} 26. Re1 $1 {[%emt 0:00:39]} Nb6 {[%emt 0:06:57] [#]} (26... Rb8 $16 27. Nd6 Nc3) 27. Nf6 $1 $18 {[%emt 0:13:09]} Nxa4 $2 {[%emt 0:00:05]} (27... Rh8 {was necessary.}) 28. Nxh5+ {[%emt 0:00:04]} Kh8 {[%emt 0:00:03]} 29. Nf6 {[%emt 0:00:08]} Nxe5 {[%emt 0:12:29]} (29... Nc3 30. h5 Nxe5 31. Qg5 (31. Qxe5 Ne2+ 32. Kf1 Qd6 $18) 31... Nxf3+ 32. gxf3 $18) 30. Qxe5 {[%emt 0:00:45] Strongly threatening Qg5.} Qc5 {[%emt 0:00:05]} (30... Bxf3 $142 31. Qg5 (31. bxa4 Qd6 $18) (31. gxf3 Qc5 $16) (31. Nd5+ f6 $16) 31... Kg7 32. Nh5+ (32. gxf3 Qxf6 33. Qxf6+ Kxf6 $19) 32... Bxh5 33. Qxe7 Nc3) 31. Qf4 {[%emt 0:06:36]} Kg7 {[%emt 0:00:01]} 32. Ne5 {[%emt 0:00:55][%cal Bf3e5,Be5g4,Bg4f6,Bf6e4,Be4g5][%mdl 32]} (32. bxa4 Bxf3 33. gxf3 (33. Qxf3 Qb4 $14) 33... Qc3 $16) 32... Qe7 {[%emt 0:02:44]} 33. Neg4 {[%emt 0:00:23] A dynamic duo of knights.} Rh8 {[%emt 0:00:38] Prevents Qh6+} 34. Qe5 {[%emt 0:00:05] White wants to mate with Ne8+.} ({Weaker is} 34. Qxa4 Qc5 $16) 34... Rxh4 {[%emt 0:01:10]} 35. Nd5+ {[%emt 0:07:36]} (35. Nh5+ $142 Kh7 36. Qg7#) 35... f6 {[%emt 0:00:40]} 36. Ngxf6 {[%emt 0:00:10]} (36. Nxe7 $2 fxe5 37. f3 Rxg4 38. fxg4 Nc3 39. Bxg6 Rd7 (39... Kf6 $2 40. Rf1+ Kg5 41. Bh5 $19) 40. Rxe5 Kf6 $19 (40... Rxe7 $2 41. Bd3 $19)) 36... Qf7 {[%emt 0:01:00]} 37. Ne4+ {[%emt 0:00:07]} (37. Qxe6 $2 {loses.} Bxd5 38. Nxd5 Qxe6 (38... Rxd5 $2 39. Qxf7+ Kxf7 40. g3 $19) 39. Rxe6 Rxd5 $19) 37... Kf8 {[%emt 0:00:32]} 38. Ng5 {[%emt 0:00:06]} Rxd5 {[%emt 0:00:22]} 39. Qb8+ {[%emt 0:01:08]} 1-0

[Event "15th Chennai GM Open 2025"]
[Site "Chennai"]
[Date "2025.01.09"]
[Round "10.2"]
[White "Sammed Jaykumar, Shete"]
[Black "Aronyak Ghosh"]
[Result "1/2-1/2"]
[ECO "D20"]
[WhiteElo "2379"]
[BlackElo "2544"]
[Annotator "TA"]
[PlyCount "25"]
[EventDate "2025.01.02"]
[EventType "swiss"]
[EventCountry "IND"]
[SourceTitle "playchess.com"]
[Source "ChessBase"]
[SourceQuality "1"]
[TimeControl "5400+30"]

{[%evp 20,25,0,0,0,0,0,0]} 1. d4 {[%emt 0:00:04]} d5 {[%emt 0:06:29]} 2. c4 {[%emt 0:00:09]} dxc4 {[%emt 0:00:04]} 3. e4 {[%emt 0:00:07][%cal Be2e4,Be4e5][%mdl 32]} Nf6 {[%emt 0:00:06]} 4. e5 {[%emt 0:00:07]} Nd5 {[%emt 0:00:04]} 5. Bxc4 {[%emt 0:00:06]} Nb6 {[%emt 0:00:02]} 6. Bb3 {[%emt 0:00:07]} Nc6 {[%emt 0:00:04]} 7. Nf3 {[%emt 0:00:08]} Bg4 {[%emt 0:00:04]} 8. Ng5 {[%emt 0:00:08]} Bxd1 {[%emt 0:00:05]} 9. Bxf7+ {[%emt 0:00:08]} Kd7 {[%emt 0:00:01]} 10. Be6+ {[%emt 0:00:10]} Ke8 {[%emt 0:00:04]} 11. Bf7+ {[%emt 0:00:05]} Kd7 {[%emt 0:00:04]} 12. Be6+ {[%emt 0:00:06]} Ke8 {[%emt 0:00:04]} 13. Bf7+ {[%emt 0:00:06]} 1/2-1/2

[Event "15th Chennai GM Open 2025"]
[Site "Chennai"]
[Date "2025.01.09"]
[Round "10.3"]
[White "Venkatesh, M.R."]
[Black "Vaz, Ethan"]
[Result "1-0"]
[ECO "B22"]
[WhiteElo "2362"]
[BlackElo "2412"]
[Annotator "TA"]
[PlyCount "91"]
[EventDate "2025.01.02"]
[EventType "swiss"]
[EventCountry "IND"]
[SourceTitle "playchess.com"]
[Source "ChessBase"]
[SourceQuality "1"]
[TimeControl "5400+30"]

{[%evp 13,91,10,12,18,0,21,34,44,149,99,101,110,122,105,127,112,237,233,241,244,243,254,235,245,236,239,249,241,244,222,217,201,206,213,201,202,199,204,213,213,203,204,218,208,220,204,326,319,379,379,383,375,427,423,406,416,552,547,825,583,926,870,5077,826,8925,8750,7628,6821,6771,6567,5814,5304,2851,2525,29964,6567,29974,29975,29969,29968]} 1. e4 {[%emt 0:05:05]} c5 {[%emt 0:00:06]} 2. c3 {[%emt 0:01:35]} d5 {[%emt 0:01:27]} 3. exd5 {[%emt 0:00:00]} Qxd5 {[%emt 0:00:02]} 4. d4 {[%emt 0:00:00]} Nf6 {[%emt 0:00:51]} 5. Nf3 {[%emt 0:00:00]} e6 {[%emt 0:02:31]} 6. Na3 {[%emt 0:02:49][%cal Bb1a3,Ba3c4,Bc4a5][%mdl 32]} a6 {[%emt 0:00:22]} 7. Nc4 {[%emt 0:00:14]} Nbd7 {[%emt 0:00:54]} 8. Be2 {[%emt 0:00:54]} b5 {[%emt 0:04:38]} 9. Na5 {[%emt 0:03:42]} Be7 {[%emt 0:18:44]} 10. O-O {[%emt 0:03:35]} Bd8 {[%emt 0:17:09] [#]} ({Black should play} 10... O-O $14) 11. Nd2 $1 {[%emt 0:06:05]} Qd6 $16 {[%emt 0:03:56]} 12. Bf3 {[%emt 0:04:06]} Bc7 {[%emt 0:02:19][%csl Gc7][%cal Rd6h2]} 13. g3 {[%emt 0:00:21] And now dxc5 would win.} Rb8 {[%emt 0:00:24]} 14. Ndb3 {[%emt 0:10:13]} Nd5 {[%emt 0:18:11] Wards off Bf4} (14... cxd4 $16 15. Nc6 (15. cxd4 Nd5 $14) (15. Qxd4 Ne5 $14) 15... dxc3) 15. dxc5 $18 {[%emt 0:11:13]} Nxc5 {[%emt 0:00:05] [#]} 16. Bxd5 $1 {[%emt 0:00:17]} Qxd5 {[%emt 0:02:40]} 17. Qxd5 {[%emt 0:02:57]} exd5 {[%emt 0:00:01]} 18. Nxc5 {[%emt 0:00:58]} Bxa5 {[%emt 0:00:01] [#]} 19. Bf4 $1 {[%emt 0:01:48]} Ra8 {[%emt 0:00:15] Black is weak on the dark squares} 20. Rfe1+ {[%emt 0:02:49]} Be6 {[%emt 0:01:38]} 21. Nxe6 {[%emt 0:01:31]} fxe6 {[%emt 0:00:02]} 22. Rxe6+ {[%emt 0:00:10]} Kf7 {[%emt 0:01:08]} 23. Re5 {[%emt 0:00:30]} Rhd8 {[%emt 0:08:33]} 24. Rd1 {[%emt 0:02:35]} Bc7 {[%emt 0:02:55]} 25. Rexd5 {[%emt 0:02:08]} Rxd5 {[%emt 0:00:02]} 26. Rxd5 {[%emt 0:00:07]} Bxf4 {[%emt 0:00:16][%mdl 4096] Endgame KRB-KR} 27. Rf5+ {[%emt 0:00:21]} ({Don't do} 27. gxf4 Rc8 28. Rd7+ Kg8 $18) 27... Ke6 {[%emt 0:01:06]} 28. Rxf4 {[%emt 0:00:05] KR-KR. White is two pawns up.} Rd8 {[%emt 0:00:14]} 29. a4 {[%emt 0:00:29]} g5 {[%emt 0:05:19]} (29... Rd2 $142 30. axb5 axb5) 30. Rb4 {[%emt 0:04:25]} bxa4 {[%emt 0:00:35]} 31. Rxa4 {[%emt 0:00:06]} Rd6 {[%emt 0:00:05]} 32. h4 {[%emt 0:01:06]} h6 {[%emt 0:01:54]} 33. hxg5 {[%emt 0:00:14]} hxg5 {[%emt 0:00:02]} 34. Kg2 {[%emt 0:00:42]} Kf5 {[%emt 0:00:33]} 35. Ra5+ {[%emt 0:01:46]} Kf6 {[%emt 0:06:09]} 36. Kf3 {[%emt 0:04:11]} Rb6 {[%emt 0:00:12]} 37. Kg4 {[%emt 0:00:22]} Rxb2 {[%emt 0:00:06]} 38. Rxa6+ {[%emt 0:00:06]} Kg7 {[%emt 0:01:27]} 39. f3 {[%emt 0:00:46]} (39. Kxg5 Rxf2 40. Ra7+ Kf8 $14) 39... Rb5 {[%emt 0:00:34]} 40. Rc6 {[%emt 0:00:56]} Rd5 {[%emt 0:00:19]} 41. c4 {[%emt 0:00:32]} Re5 {[%emt 0:00:01]} 42. Rd6 {[%emt 0:00:18]} Rc5 {[%emt 0:00:06]} 43. Rd5 {[%emt 0:00:07]} Rxc4+ {[%emt 0:00:04]} 44. Kxg5 {[%emt 0:00:04]} Rc3 {[%emt 0:00:13]} 45. Rd7+ {[%emt 0:00:09]} Kf8 {[%emt 0:00:14]} 46. Kg4 {[%emt 0:00:08]} 1-0

[Event "15th Chennai GM Open 2025"]
[Site "Chennai"]
[Date "2025.01.09"]
[Round "10.4"]
[White "Ajay Santhosh Parvathareddy"]
[Black "Kaustuv, Kundu"]
[Result "0-1"]
[ECO "E94"]
[WhiteElo "2292"]
[BlackElo "2409"]
[Annotator "TA"]
[PlyCount "228"]
[EventDate "2025.01.02"]
[EventType "swiss"]
[EventCountry "IND"]
[SourceTitle "playchess.com"]
[Source "ChessBase"]
[SourceQuality "1"]
[TimeControl "5400+30"]

{[%evp 93,228,-87,-15,-87,-87,-87,-80,-80,-80,-80,-80,-80,-80,-80,-80,-110,-80,-80,-75,-76,-77,-78,-77,-78,-78,-79,-79,-79,-79,-100,-114,-108,-112,-110,-57,-57,-57,-71,-44,-65,-64,-64,-64,-70,-56,-78,-78,-126,-120,-142,-134,-156,-156,-149,-120,-175,-175,-174,-93,-93,-93,-110,-102,-120,-93,-93,-93,-93,-93,-113,-113,-137,-93,-95,-95,-133,-93,-117,-91,-131,-91,-91,-91,-91,-91,-136,-95,-106,-94,-94,-91,-94,-91,-132,-125,-231,-249,-337,-264,-268,-268,-244,-260,-322,-260,-253,-159,-264,-264,-530,-253,-530,-530,-530,-530,-4598,-530,-530,-530,-530,-530,-530,-530,-530,-450,-530,-530,-530,-530,-530,-530,-530,-450,-450,0,-530,0]} 1. d4 {[%emt 0:00:02]} Nf6 {[%emt 0:05:16]} 2. c4 {[%emt 0:00:04]} g6 {[%emt 0:00:21]} 3. Nc3 {[%emt 0:00:02]} Bg7 {[%emt 0:00:10]} 4. e4 {[%emt 0:00:04]} d6 {[%emt 0:00:08]} 5. Be2 {[%emt 0:00:02]} O-O {[%emt 0:00:17]} 6. Nf3 {[%emt 0:00:03]} e5 {[%emt 0:01:20]} 7. O-O {[%emt 0:00:03]} Bg4 {[%emt 0:01:35]} 8. d5 {[%emt 0:00:05]} a5 {[%emt 0:00:44]} 9. Be3 {[%emt 0:00:15]} Bxf3 {[%emt 0:02:46]} 10. Bxf3 {[%emt 0:00:11]} Na6 {[%emt 0:00:06]} 11. a3 {[%emt 0:00:59]} Nc5 {[%emt 0:02:51]} 12. b4 {[%emt 0:11:20]} axb4 {[%emt 0:01:33]} 13. axb4 {[%emt 0:00:04]} Rxa1 {[%emt 0:00:27]} 14. Qxa1 {[%emt 0:00:30]} Nb3 {[%emt 0:00:05]} 15. Qd1 {[%emt 0:08:10]} Nd4 {[%emt 0:00:25]} 16. Bxd4 {[%emt 0:01:04]} exd4 {[%emt 0:00:05]} 17. Qxd4 {[%emt 0:00:49]} Nxe4 {[%emt 0:00:37]} 18. Qxe4 {[%emt 0:00:05]} Bxc3 {[%emt 0:00:05]} 19. g3 {[%emt 0:04:17]} Bxb4 {[%emt 0:03:13]} 20. Rb1 {[%emt 0:02:50]} Bc5 {[%emt 0:00:14]} 21. Rxb7 {[%emt 0:00:23]} Bb6 {[%emt 0:00:06]} 22. c5 {[%emt 0:02:22]} Bxc5 {[%emt 0:01:11]} 23. Rb2 {[%emt 0:00:35]} Qf6 {[%emt 0:01:55]} 24. Ra2 {[%emt 0:00:33]} Rb8 {[%emt 0:00:30]} 25. Kg2 {[%emt 0:00:10]} Kg7 {[%emt 0:01:11]} 26. Re2 {[%emt 0:06:42]} Rb3 {[%emt 0:03:58]} 27. Qf4 {[%emt 0:01:07]} Qxf4 {[%emt 0:01:55]} 28. gxf4 {[%emt 0:00:03]} Bb6 {[%emt 0:07:35]} 29. Be4 {[%emt 0:07:16]} f5 {[%emt 0:04:44]} 30. Bf3 {[%emt 0:00:58]} Kf7 {[%emt 0:00:29]} 31. Rd2 {[%emt 0:05:17]} Rc3 {[%emt 0:01:21]} 32. Be2 {[%emt 0:00:40]} Bc5 {[%emt 0:00:16]} 33. h4 {[%emt 0:03:50]} h5 {[%emt 0:10:18]} 34. Bb5 {[%emt 0:00:44]} Rb3 {[%emt 0:01:20]} 35. Bc6 {[%emt 0:00:33]} Rb4 {[%emt 0:00:13]} 36. Kg3 {[%emt 0:00:35]} Bd4 {[%emt 0:00:25]} 37. Re2 {[%emt 0:04:32]} Bf6 {[%emt 0:00:43]} 38. Re1 {[%emt 0:00:51]} Rb3+ {[%emt 0:03:01]} 39. f3 {[%emt 0:00:29]} Rb8 {[%emt 0:14:41]} 40. Rc1 {[%emt 0:01:17]} Bd4 {[%emt 0:00:59]} 41. Ba4 {[%emt 0:01:45]} Bc5 {[%emt 0:00:39]} 42. Re1 {[%emt 0:00:40]} Bd4 {[%emt 0:04:27]} 43. Rc1 {[%emt 0:00:04]} Rb7 {[%emt 0:02:01]} 44. Re1 {[%emt 0:00:58]} Bf6 {[%emt 0:00:38]} 45. Bd7 {[%emt 0:00:40]} Ra7 {[%emt 0:03:54]} 46. Bc6 {[%emt 0:00:26]} Ra2 {[%emt 0:00:35]} 47. Bd7 {[%emt 0:00:24]} Bd4 {[%emt 0:02:37]} (47... Ra1 $17 48. Re2 Rh1 49. Be6+ Kg7) 48. Kh3 {[%emt 0:00:48]} (48. Be8+ $11 Kg8 49. Re6) 48... Ra3 {[%emt 0:01:25]} 49. Kg3 {[%emt 0:02:09]} Be3 {[%emt 0:01:32]} 50. Bc6 {[%emt 0:00:27]} Rc3 {[%emt 0:02:01]} 51. Bb5 {[%emt 0:00:22]} Rb3 {[%emt 0:01:33]} 52. Bd7 {[%emt 0:00:31]} Kg7 {[%emt 0:03:20]} 53. Be8 {[%emt 0:00:36]} Rd3 {[%emt 0:00:48]} 54. Bc6 {[%emt 0:01:56]} Kf8 {[%emt 0:00:18]} 55. Re2 {[%emt 0:00:48]} Bd2 {[%emt 0:00:56]} 56. Re6 {[%emt 0:00:44]} Rd4 {[%emt 0:00:04]} 57. Rxg6 {[%emt 0:00:51]} Bxf4+ {[%emt 0:00:06]} 58. Kf2 {[%emt 0:01:18]} Kf7 {[%emt 0:01:13]} 59. Re6 {[%emt 0:00:05]} Be5 {[%emt 0:00:10]} 60. Be8+ {[%emt 0:00:56]} Kg7 {[%emt 0:01:12]} 61. Rg6+ {[%emt 0:02:03]} Kf8 {[%emt 0:00:17]} 62. Bc6 {[%emt 0:00:06]} Rxh4 {[%emt 0:03:22]} 63. Rg5 {[%emt 0:00:05]} Kf7 {[%emt 0:03:31]} (63... Rh2+ $1 $17 64. Kg1 Ke7) 64. Rxf5+ $15 {[%emt 0:00:20]} Kg6 {[%emt 0:00:16]} 65. Rf8 {[%emt 0:00:07]} Rh2+ {[%emt 0:00:33]} 66. Kg1 {[%emt 0:01:06]} Rd2 {[%emt 0:00:09]} 67. f4 {[%emt 0:00:49]} Bd4+ {[%emt 0:01:06]} 68. Kh1 $1 {[%emt 0:00:01]} h4 {[%emt 0:00:18]} 69. Bd7 {[%emt 0:00:03]} Kg7 {[%emt 0:01:19]} 70. Rf5 {[%emt 0:00:24] [#]} (70. Re8 $142) 70... Bf6 $1 $17 {[%emt 0:00:20]} 71. Rh5 {[%emt 0:00:51]} Rd4 {[%emt 0:00:06]} 72. Kg2 {[%emt 0:00:51]} Rxf4 {[%emt 0:00:13]} 73. Bf5 {[%emt 0:00:40]} Bd4 {[%emt 0:02:02]} 74. Rh7+ {[%emt 0:01:07]} (74. Kh3 $17) 74... Kf6 $19 {[%emt 0:00:31]} 75. Bc8 {[%emt 0:01:16]} Ke5 {[%emt 0:00:57]} (75... Kg5 $19 {Threatens to win with ...Rf2+.} 76. Rxc7 Rf2+ 77. Kh1 h3) 76. Rxc7 $17 {[%emt 0:01:16]} Kxd5 {[%emt 0:00:27]} 77. Bb7+ {[%emt 0:00:14]} Ke6 {[%emt 0:00:16]} 78. Bc8+ {[%emt 0:01:31]} Ke5 {[%emt 0:00:47]} 79. Re7+ {[%emt 0:00:52]} Kd5 {[%emt 0:00:09]} 80. Be6+ {[%emt 0:01:59]} Kc6 {[%emt 0:00:17]} 81. Rf7 {[%emt 0:01:23]} Bf6 {[%emt 0:00:27]} 82. Rh7 {[%emt 0:00:23]} Rd4 {[%emt 0:01:19]} 83. Bd7+ {[%emt 0:00:22]} Kb6 {[%emt 0:00:14]} 84. Kh3 {[%emt 0:00:55]} Rd1 {[%emt 0:00:56]} 85. Rh6 {[%emt 0:00:44]} Bd8 {[%emt 0:00:08]} 86. Rh8 {[%emt 0:00:58]} Kc7 {[%emt 0:00:32]} 87. Rh7 {[%emt 0:00:05]} Rd3+ {[%emt 0:01:20]} 88. Kg4 {[%emt 0:00:04]} Kb6 {[%emt 0:00:12]} 89. Rh8 {[%emt 0:00:26]} Be7 {[%emt 0:00:31]} 90. Rh7 {[%emt 0:00:11]} Re3 {[%emt 0:00:19]} 91. Rh5 {[%emt 0:00:55]} Kc7 {[%emt 0:00:33]} 92. Bb5 {[%emt 0:00:32]} Re4+ {[%emt 0:01:30]} 93. Kf5 {[%emt 0:00:45]} d5 {[%emt 0:00:31]} 94. Rh7 {[%emt 0:03:23] [#]} (94. Bf1 $17) 94... Kd6 $1 $19 {[%emt 0:00:26]} 95. Be8 {[%emt 0:00:42]} Re1 {[%emt 0:00:20]} 96. Rh6+ {[%emt 0:00:10]} Kc5 {[%emt 0:00:07]} 97. Rc6+ {[%emt 0:01:47]} Kd4 {[%emt 0:00:42]} 98. Re6 {[%emt 0:00:08]} Rf1+ {[%emt 0:01:18]} ({Much less strong is} 98... Rxe6 99. Kxe6 Kc4 100. Bc6 $19) 99. Kg4 {[%emt 0:00:08]} Bf6 {[%emt 0:00:11]} 100. Bd7 {[%emt 0:02:09]} (100. Re2 $17) 100... Rg1+ $19 {[%emt 0:00:30]} 101. Kh3 $2 {[%emt 0:00:53]} (101. Kf3) 101... Rg3+ $19 {[%emt 0:00:16]} 102. Kh2 {[%emt 0:00:03]} Be5 {[%emt 0:00:27]} 103. Kh1 {[%emt 0:00:04]} Rg7 {[%emt 0:00:10]} 104. Bc8 {[%emt 0:01:36]} h3 {[%emt 0:01:54]} (104... Rc7 $142 105. Re8 Rc3) 105. Rc6 {[%emt 0:00:05]} h2 {[%emt 0:01:19]} 106. Rc1 {[%emt 0:00:06]} Bf4 {[%emt 0:00:20]} 107. Rd1+ {[%emt 0:00:32]} Ke3 {[%emt 0:00:06]} 108. Ba6 {[%emt 0:00:06]} d4 {[%emt 0:00:36]} 109. Bb5 {[%emt 0:00:38]} Rc7 {[%emt 0:00:28]} 110. Ba6 {[%emt 0:00:26]} Ra7 {[%emt 0:00:50]} 111. Bb5 {[%emt 0:00:06]} Ra5 {[%emt 0:00:16]} 112. Bc4 {[%emt 0:00:06]} Kf2 {[%emt 0:00:34]} 113. Rf1+ {[%emt 0:00:30]} Ke3 {[%emt 0:00:51]} 114. Rd1 $1 {[%emt 0:00:05]} Ra7 $2 {[%emt 0:00:14]} ({Black should try} 114... Ra3 $19 115. Bb5 Ra5) 0-1